bitfinex/quotes_ETHUSD_20241215
["timestamp","ask_amount","ask_price","bid_price","bid_amount"]
[1734281332109,2.55741,3910.2,3910.1,0.795]
[1734281332308,2.55741,3910.2,3909.3,0.795]
[1734281332508,2.55741,3910.2,3909.4,0.87580806]
[1734281333157,2.55741,3910.2,3909.3,0.795]
[1734281333310,2.813151,3910.2,3909.4,0.87601569]
[1734281333511,2.55791,3909.5,3909.0,0.795]
[1734281333711,2.55798,3909.4,3909.0,0.795]
[1734281333917,1.73228685,3910.1,3909.0,0.795]
[1734281334142,2.55799,3909.4,3909.0,0.795]
[1734281334531,2.55801,3909.3,3909.0,0.795]
[1734281335667,2.55807,3909.2,3909.0,0.795]
[1734281335867,2.55807,3909.2,3908.7,0.788]
[1734281336272,0.30649393,3909.3,3908.7,0.788]
[1734281336573,1.17782929,3909.4,3908.7,0.788]
[1734281336873,2.55827,3908.9,3908.7,0.788]
[1734281337665,2.55827,3908.9,3908.0,0.788]
[1734281338234,1.17782929,3909.4,3908.0,0.788]
[1734281339301,2.55833,3908.8,3908.0,0.788]
[1734281339447,1.17782929,3909.4,3908.0,0.788]
[1734281339448,2.55839,3908.7,3908.0,0.788]
[1734281339645,2.55848,3908.6,3908.0,0.788]
[1734281339955,2.55813,3909.1,3908.0,0.788]
[1734281340145,2.55853,3908.5,3908.0,0.788]
[1734281340542,0.51960944,3908.3,3908.0,0.788]
[1734281340746,0.6709,3909.4,3908.0,0.788]
[1734281340974,2.55807,3909.2,3908.2,0.788]
[1734281341374,0.50845375,3909.1,3908.3,0.02558367]
[1734281341571,3.22844,3910.0,3908.4,0.788]
[1734281341772,2.55777,3909.7,3908.4,0.788]
[1734281342051,0.6709,3910.0,3908.4,0.788]
[1734281342393,0.51398042,3909.2,3908.4,0.788]
[1734281342546,0.51398042,3909.2,3908.5,0.7618]
[1734281342745,0.51398042,3909.2,3908.7,0.7618]
[1734281342949,2.55762,3909.9,3908.8,0.02558104]
[1734281343151,0.6709,3909.9,3908.9,0.7618]
[1734281343402,0.52349858,3909.7,3908.9,1.31504173]
[1734281344253,3.08123858,3909.7,3908.9,1.31504173]
[1734281344787,2.55783,3909.6,3908.9,0.7618]
[1734281344972,0.52349858,3909.7,3908.9,0.7618]
[1734281346575,2.55782,3909.6,3908.9,0.7618]
[1734281347274,2.55794,3909.4,3908.9,0.7618]
[1734281347475,0.52349858,3909.7,3908.9,0.7618]
[1734281347714,0.52349858,3909.7,3908.1,0.7618]
[1734281347904,2.55822,3909.0,3908.1,1.61509473]
[1734281348263,2.55822,3909.0,3908.1,0.7618]
[1734281348702,2.55842,3908.7,3908.1,0.7618]
[1734281349011,0.50063698,3909.1,3908.1,0.7618]
[1734281349012,2.55852,3908.6,3908.1,0.7618]
[1734281349512,2.55856,3908.5,3907.5,0.7618]
[1734281350981,2.55856,3908.5,3907.5,3.7618]
[1734281351232,2.55826,3908.9,3907.6,3.15651373]
[1734281351522,0.6709,3909.2,3907.6,0.59740373]
[1734281352020,2.55851,3908.6,3907.6,0.59740373]
[1734281352412,0.6709,3909.2,3907.7,0.7618]
[1734281352764,4.14953028,3910.2,3908.0,0.7618]
[1734281352765,2.55803,3909.3,3908.0,0.7618]
[1734281352896,2.55809,3909.2,3908.1,1.05920373]
[1734281353227,2.55809,3909.2,3908.3,0.7618]
[1734281353383,0.52151177,3908.7,3908.3,0.7618]
[1734281354230,2.55799,3909.4,3908.3,0.7618]
[1734281354382,0.51276408,3908.8,3908.3,0.7618]
[1734281354587,2.55776,3909.7,3908.4,0.7618]
[1734281354794,2.55788,3909.5,3908.4,0.7618]
[1734281355510,2.55794,3909.4,3908.4,0.7618]
[1734281355719,0.50590675,3909.0,3908.4,0.7618]
[1734281359196,0.6709,3909.9,3908.4,0.7618]
[1734281359197,0.6709,3909.9,3908.5,0.02558262]
[1734281359358,0.6709,3910.3,3908.8,0.7763]
[1734281359556,2.55756,3910.0,3908.8,0.7763]
[1734281360082,0.322821,3910.2,3908.8,0.7763]
[1734281360241,2.55761,3909.9,3908.8,0.7763]
[1734281360645,0.322821,3910.2,3908.8,0.7763]
[1734281360646,0.50118579,3909.2,3908.8,0.7763]
[1734281362954,2.55827,3908.9,3908.2,0.7821]
[1734281363852,0.50118579,3909.2,3908.2,0.7821]
[1734281363853,2.55813,3909.1,3908.2,0.7821]
[1734281364057,2.86406158,3909.1,3908.2,0.7821]
[1734281364864,2.5582,3909.0,3908.2,0.7821]
[1734281365097,0.50118579,3909.2,3908.2,2.21223728]
[1734281365257,0.50118579,3909.2,3908.3,5.55864]
[1734281365452,0.50118579,3909.2,3908.4,0.7821]
[1734281365867,0.80709537,3909.2,3908.4,0.7821]
[1734281366991,0.50118579,3909.2,3908.4,0.7821]
[1734281367590,3.05926579,3909.2,3908.4,0.7821]
[1734281368495,0.50118579,3909.2,3908.4,0.7821]
[1734281369202,0.50118579,3909.2,3908.5,0.02558271]
[1734281369408,4.06138685,3910.3,3907.9,3.0]
[1734281369409,0.6709,3910.7,3909.2,0.7821]
[1734281369580,0.51001298,3909.8,3909.2,0.7821]
[1734281370322,2.55721,3910.5,3909.3,0.7821]
[1734281370466,2.55728,3910.4,3909.3,0.7821]
[1734281371505,0.51799473,3910.0,3909.3,0.7821]
[1734281374086,0.51799473,3910.0,3909.4,2.21223728]
[1734281374294,0.51799473,3910.0,3909.6,0.7821]
[1734281385949,0.51799473,3910.0,3909.3,0.7807]
[1734281386249,0.51799473,3910.0,3908.7,0.7807]
[1734281386250,0.6709,3909.8,3908.7,0.7807]
[1734281386448,2.55813,3909.2,3908.7,0.7807]
[1734281387222,2.55793,3909.5,3908.7,0.7807]
[1734281387674,2.880813,3909.5,3908.7,0.7807]
[1734281389266,2.558,3909.3,3908.7,0.7807]
[1734281389799,0.50260563,3908.9,3908.7,0.7807]
[1734281390642,3.06086563,3908.9,3908.7,0.7807]
[1734281390847,3.06086563,3908.9,3907.9,0.7807]
[1734281391160,0.80869219,3908.9,3907.9,0.7807]
[1734281391360,2.55839,3908.7,3907.9,0.7807]
[1734281392207,0.50260563,3908.9,3907.9,0.7807]
[1734281392408,0.50260563,3908.9,3908.0,2.55883]
[1734281392705,0.50260563,3908.9,3908.1,0.7807]
[1734281393273,0.50260563,3908.9,3908.1,3.0]
[1734281393472,0.50260563,3908.9,3908.2,1.336583]
[1734281393710,0.50260563,3908.9,3908.2,0.7807]
[1734281396511,0.50260563,3908.9,3908.3,0.8118]
[1734281399408,0.50260563,3908.9,3908.4,1.68776735]
[1734281399607,0.50260563,3908.9,3908.4,0.8118]
[1734281409104,0.50260563,3908.9,3908.5,0.87576681]
[1734281409514,2.55763,3909.9,3908.7,2.55839]
[1734281409849,2.55765,3909.9,3908.8,0.8276]
[1734281410146,2.55765,3909.9,3908.8,1.70334322]
[1734281410319,2.55765,3909.9,3908.8,0.8276]
[1734281410701,0.6709,3910.1,3908.8,0.8276]
[1734281410897,2.55775,3909.7,3908.8,0.8276]
[1734281411096,0.42896769,3910.0,3908.8,0.8276]
[1734281411097,2.55785,3909.6,3908.8,0.8276]
[1734281411302,2.5578,3909.7,3908.8,0.8276]
[1734281412538,0.51837675,3909.0,3908.8,0.8276]
[1734281414436,0.51530085,3909.0,3908.8,0.8276]
[1734281414643,3.07350085,3909.0,3908.3,0.8276]
[1734281414845,0.6709,3908.8,3908.0,0.8068]
[1734281415546,2.55848,3908.6,3908.0,0.8068]
[1734281415907,2.55853,3908.5,3908.0,0.8068]
[1734281417433,0.6709,3908.8,3907.6,0.8068]
[1734281418013,0.50189918,3908.1,3907.6,0.8068]
[1734281418423,0.50189918,3908.1,3907.6,3.55295471]
[1734281418629,0.50189918,3908.1,3907.7,3.0]
[1734281419650,3.22925,3908.8,3907.7,3.0]
[1734281419816,3.22925,3908.8,3907.8,0.87644871]
[1734281420147,0.51779769,3908.3,3907.9,0.8068]
[1734281420346,1.59208028,3909.8,3907.8,0.87644871]
[1734281420347,0.6709,3909.5,3908.2,3.01903728]
[1734281420547,2.55785,3909.6,3908.4,3.8068]
[1734281420707,2.55785,3909.6,3908.5,3.43452654]
[1734281420912,2.55785,3909.6,3908.6,0.8068]
[1734281421132,2.55785,3909.6,3908.6,3.8068]
[1734281421332,2.55785,3909.6,3908.7,0.74290571]
[1734281423641,0.50746016,3909.2,3908.7,0.74290571]
[1734281423950,0.50746016,3909.2,3908.8,0.8068]
[1734281424317,2.55749,3910.1,3908.9,0.8068]
[1734281424518,1.06138685,3910.4,3909.0,0.8068]
[1734281424731,1.06138685,3910.4,3909.1,0.8068]
[1734281424732,2.88977671,3910.3,3909.1,0.8068]
[1734281425327,2.88977671,3910.3,3909.1,3.36492]
[1734281425753,0.50454313,3909.7,3909.1,3.36492]
[1734281426256,0.50454313,3909.7,3909.2,0.8068]
[1734281430179,0.50454313,3909.7,3909.4,0.8068]
[1734281430474,0.50454313,3909.7,3909.5,0.38068]
[1734281431971,0.6709,3910.5,3909.5,0.38068]
[1734281432173,2.5571,3910.7,3909.6,0.87602358]
[1734281432372,2.55717,3910.6,3909.5,0.38068]
[1734281432575,0.6709,3910.8,3909.4,5.57695728]
[1734281432576,2.55723,3910.5,3909.4,3.01903728]
[1734281433045,0.51490708,3909.9,3909.4,0.8068]
[1734281433215,2.55768,3909.8,3909.1,0.8068]
[1734281434803,0.51490708,3909.9,3909.1,0.8068]
[1734281434804,2.55775,3909.7,3909.1,0.8068]
[1734281436099,2.558,3909.4,3908.7,0.7674]
[1734281436409,2.55801,3909.3,3908.7,0.7674]
[1734281437437,3.22857,3909.8,3908.7,0.7674]
[1734281437577,0.48048639,3909.7,3908.7,0.7674]
[1734281438278,2.55774,3909.7,3908.7,0.7674]
[1734281438469,2.55783,3909.6,3908.7,0.7674]
[1734281438674,2.55787,3909.5,3908.7,0.7674]
[1734281439487,2.55794,3909.4,3908.7,0.7674]
[1734281439728,0.6709,3909.8,3908.4,0.7674]
[1734281439729,0.51559893,3908.8,3908.4,0.7674]
[1734281441099,3.44840082,3908.8,3908.0,0.7674]
[1734281441428,2.55842,3908.7,3908.1,0.87747017]
[1734281441616,2.55842,3908.7,3908.0,0.7674]
[1734281442883,0.89007082,3908.8,3908.0,0.7674]
[1734281443184,0.51559893,3908.8,3908.0,0.7674]
[1734281444038,2.55822,3909.0,3908.0,0.7674]
[1734281444221,0.6709,3909.1,3908.0,0.7674]
[1734281444420,2.55829,3908.9,3908.0,0.7674]
[1734281444745,0.51893551,3908.2,3908.0,0.7674]
[1734281446295,0.51893551,3908.2,3907.7,0.7807]
[1734281447653,0.89377106,3908.2,3907.7,0.7807]
[1734281448487,2.55883,3908.1,3907.3,0.7807]
[1734281449592,2.55886,3908.0,3907.3,0.7807]
[1734281449793,2.55899,3907.8,3907.3,0.7807]
[1734281450030,2.55899,3907.8,3906.9,2.21223728]
[1734281450031,2.55899,3907.8,3907.0,0.7807]
[1734281450808,2.881979,3907.8,3907.0,0.7807]
[1734281451015,0.6709,3907.9,3907.0,0.7807]
[1734281451190,0.6709,3908.2,3907.0,0.7807]
[1734281451405,2.55886,3908.0,3907.0,0.7807]
[1734281451593,0.51665727,3907.4,3907.0,0.7807]
[1734281454437,0.51665727,3907.4,3906.6,3.0]
[1734281454438,0.51665727,3907.4,3906.6,0.7807]
[1734281454940,2.55938,3907.2,3906.6,0.7807]
[1734281455243,0.51665727,3907.4,3906.6,0.7807]
[1734281455810,0.51665727,3907.4,3907.0,0.7621]
[1734281457196,3.22951,3908.4,3907.2,0.7621]
[1734281457643,2.55873,3908.2,3907.2,0.7621]
[1734281458626,0.6709,3908.4,3907.2,0.7621]
[1734281458627,0.50897605,3907.5,3907.2,0.7621]
[1734281458992,3.22949,3908.4,3907.2,0.7621]
[1734281459301,0.322949,3908.4,3907.3,0.78768971]
[1734281459499,0.6709,3908.8,3907.4,0.7621]
[1734281459841,2.55859,3908.4,3907.4,0.7621]
[1734281460007,2.55845,3908.7,3907.4,0.7621]
[1734281460195,2.55852,3908.5,3907.4,0.7621]
[1734281460840,0.6709,3908.8,3907.4,0.7621]
[1734281461042,2.55864,3908.4,3907.4,0.7621]
[1734281461348,2.55864,3908.4,3907.4,1.394247]
[1734281462439,0.52346265,3907.8,3907.4,1.394247]
[1734281465815,0.52346265,3907.8,3907.4,0.7621]
[1734281467998,0.52346265,3907.8,3906.6,5.85900373]
[1734281467999,0.52346265,3907.8,3907.1,0.803]
[1734281469024,3.23008,3907.5,3906.8,0.803]
[1734281469832,2.55925,3907.4,3906.8,0.803]
[1734281470399,2.55931,3907.3,3906.8,0.803]
[1734281470600,0.323021,3907.3,3906.4,0.803]
[1734281470834,2.55953,3907.0,3906.4,0.803]
[1734281471240,2.55938,3907.2,3906.4,0.803]
[1734281471447,2.55944,3907.1,3906.4,0.803]
[1734281474663,0.323021,3907.3,3906.4,0.803]
[1734281474664,0.50977712,3906.5,3906.4,0.803]
[1734281476899,0.50977712,3906.5,3906.4,0.653]
[1734281478617,0.50977712,3906.5,3905.7,2.21223728]
[1734281478916,0.50977712,3906.5,3905.7,5.21223728]
[1734281479094,0.50977712,3906.5,3905.7,2.21223728]
[1734281479311,0.89716083,3906.5,3905.3,7.89852893]
[1734281479805,0.89716083,3906.5,3905.3,7.77280728]
[1734281480012,0.89716083,3906.5,3905.7,1.01921824]
[1734281480510,0.50977712,3906.5,3905.7,1.01921824]
[1734281481262,0.50977712,3906.5,3906.0,1.01921824]
[1734281482131,0.50977712,3906.5,3905.7,0.829]
[1734281485299,0.8044,3906.4,3905.4,0.829]
[1734281485471,0.8044,3906.4,3905.0,0.829]
[1734281485674,2.56023,3905.9,3905.0,0.829]
[1734281487230,2.56031,3905.8,3905.0,0.829]
[1734281487647,0.8044,3905.7,3904.7,0.829]
[1734281488224,0.50833266,3905.1,3904.7,3.829]
[1734281488635,0.50833266,3905.1,3904.7,0.829]
[1734281489253,0.38740271,3906.3,3905.0,0.829]
[1734281489407,0.8044,3906.2,3905.4,0.829]
[1734281489607,0.55,3906.8,3905.1,0.829]
[1734281489819,0.8044,3905.9,3905.1,0.829]
[1734281490025,3.36466,3905.9,3905.1,0.829]
[1734281490636,0.50029315,3905.5,3905.1,0.829]
[1734281490842,0.80635247,3905.5,3904.8,0.829]
[1734281491982,0.50029315,3905.5,3904.8,0.829]
[1734281493231,0.50029315,3905.5,3904.9,2.20818599]
[1734281494232,0.50029315,3905.5,3905.0,3.38978]
[1734281494433,0.50029315,3905.5,3905.0,0.829]
[1734281497079,1.32119315,3905.5,3904.6,3.751]
[1734281497279,1.70935747,3905.5,3904.6,3.751]
[1734281498277,1.70935747,3905.5,3904.6,3.31207]
[1734281498486,0.50029315,3905.5,3904.6,3.31207]
[1734281500441,0.50029315,3905.5,3904.6,0.751]
[1734281503983,0.50029315,3905.5,3904.9,1.01965395]
[1734281504342,0.8209,3905.3,3904.6,0.751]
[1734281504590,0.8209,3905.3,3904.5,1.01965395]
[1734281504797,3.76969632,3905.3,3904.3,0.751]
[1734281504993,1.20907632,3905.3,3904.3,0.751]
[1734281505304,0.8209,3905.3,3904.3,1.77065395]
[1734281505466,2.56078,3905.1,3904.3,1.77065395]
[1734281506974,0.50212033,3904.6,3904.3,1.77065395]
[1734281508305,0.50212033,3904.6,3904.3,1.01965395]
[1734281508601,0.50212033,3904.6,3904.1,1.01965395]
[1734281509470,0.63442236,3904.6,3904.1,1.01965395]
[1734281509671,0.50212033,3904.6,3904.4,1.01965395]
[1734281509865,0.50212033,3904.6,3904.5,1.01965395]
[1734281510491,0.50212033,3904.6,3904.5,1.77065395]
[1734281510810,3.0,3906.3,3904.5,1.77065395]
[1734281510811,0.8209,3905.8,3904.5,1.79626413]
[1734281511016,0.8209,3905.8,3905.0,1.01965395]
[1734281511202,0.338116,3905.7,3905.0,1.01965395]
[1734281511901,0.338116,3905.7,3904.7,1.01965395]
[1734281512091,2.56036,3905.7,3904.7,1.01965395]
[1734281512319,0.51911133,3905.1,3904.7,1.01965395]
[1734281517790,0.51911133,3905.1,3904.5,3.751]
[1734281517997,0.51911133,3905.1,3904.5,0.751]
[1734281518706,0.51911133,3905.1,3904.5,3.751]
[1734281520534,0.51911133,3905.1,3904.7,3.58066395]
[1734281521437,0.51911133,3905.1,3904.7,1.55919505]
[1734281521638,0.12928848,3907.0,3905.0,1.01965395]
[1734281521639,1.06138685,3906.8,3905.0,1.01965395]
[1734281521836,1.59208028,3907.0,3905.0,1.01965395]
[1734281521837,3.3744,3906.7,3905.6,0.8179]
[1734281522008,0.50593819,3905.7,3905.6,0.8179]
[1734281522443,0.50593819,3905.7,3905.2,1.83755395]
[1734281522625,0.50593819,3905.7,3904.9,1.8816471]
[1734281522826,0.50593819,3905.7,3905.2,1.01965395]
[1734281523651,0.50593819,3905.7,3905.3,0.87851631]
[1734281524159,0.50593819,3905.7,3905.2,1.01965395]
[1734281524761,0.50593819,3905.7,3905.5,1.83755395]
[1734281524918,0.8147,3906.4,3905.5,1.83755395]
[1734281525254,0.8147,3906.4,3905.8,1.01965395]
[1734281525745,0.51253687,3905.9,3905.8,1.01965395]
[1734281526801,1.02939379,3906.9,3905.8,1.04525579]
[1734281527021,0.50301068,3906.1,3905.9,0.8179]
[1734281527642,0.50301068,3906.1,3905.6,0.8179]
[1734281527817,3.06310068,3906.1,3905.3,1.0637471]
[1734281528016,3.06310068,3906.1,3905.3,3.21617768]
[1734281528017,0.50301068,3906.1,3905.3,3.21617768]
[1734281528212,2.5602,3906.0,3905.3,1.01965395]
[1734281528444,0.38779107,3905.9,3905.3,1.01965395]
[1734281530011,0.38779107,3905.9,3905.2,0.8179]
[1734281530214,0.38779107,3905.9,3905.3,0.87890124]
[1734281530626,0.50301068,3906.1,3905.2,0.8179]
[1734281530952,0.50301068,3906.1,3905.3,0.87896661]
[1734281531759,0.50301068,3906.1,3905.5,2.56046]
[1734281532125,0.50301068,3906.1,3905.6,2.19677322]
[1734281532461,0.50301068,3906.1,3905.7,0.87870929]
[1734281532767,0.50301068,3906.1,3905.4,3.27252276]
[1734281532912,0.50301068,3906.1,3905.5,2.19639641]
[1734281533112,0.50301068,3906.1,3905.6,0.87855856]
[1734281533414,0.50301068,3906.1,3905.4,2.20877566]
[1734281533647,0.50301068,3906.1,3905.5,2.1960359]
[1734281533959,0.50301068,3906.1,3905.4,2.20877566]
[1734281534125,0.50301068,3906.1,3905.6,2.56038]
[1734281534330,0.8147,3907.0,3905.9,3.37809]
[1734281534639,0.8147,3907.0,3906.1,2.56008]
[1734281535311,0.8147,3907.0,3906.2,5.6464627]
[1734281535515,0.50891457,3906.6,3906.3,0.803]
[1734281536328,0.50891457,3906.6,3906.0,3.803]
[1734281537329,0.81576403,3906.6,3906.0,3.803]
[1734281537511,0.50891457,3906.6,3906.0,3.803]
[1734281537713,0.50891457,3906.6,3906.0,0.803]
[1734281538690,0.50891457,3906.6,3905.6,1.0637471]
[1734281538691,0.7569,3906.5,3905.6,0.803]
[1734281539906,0.7569,3906.5,3905.3,0.803]
[1734281540045,2.56,3906.3,3905.3,0.803]
[1734281540243,0.7569,3906.1,3905.3,0.803]
[1734281540798,0.7569,3906.1,3905.0,3.01177566]
[1734281541000,0.7569,3906.1,3905.1,0.87763069]
[1734281541343,3.31702,3906.1,3905.1,3.87763069]
[1734281541581,3.31702,3906.1,3905.1,3.0]
[1734281541900,2.891882,3906.0,3905.0,3.01177566]
[1734281542187,2.56026,3905.9,3905.0,3.01177566]
[1734281542432,2.56026,3905.9,3904.7,6.6247471]
[1734281542433,0.7569,3905.7,3904.7,0.803]
[1734281542569,0.7569,3905.7,3904.8,5.19447033]
[1734281542766,0.52312276,3905.5,3904.9,0.87778813]
[1734281542970,0.52312276,3905.5,3904.7,0.803]
[1734281543269,0.90716104,3905.5,3904.8,0.87789065]
[1734281543472,0.7867,3905.4,3904.3,1.8263471]
[1734281543718,2.56071,3905.2,3904.4,2.19511187]
[1734281544012,0.7867,3904.9,3904.0,4.03512276]
[1734281544226,0.7867,3904.9,3904.1,2.19549793]
[1734281544368,0.7867,3904.9,3904.2,0.87819917]
[1734281544570,0.7867,3904.9,3904.6,1.0]
[1734281544918,0.51119404,3904.7,3904.6,1.0]
[1734281551288,0.7867,3905.5,3904.7,0.7626]
[1734281551556,0.7867,3905.5,3904.7,3.32359]
[1734281552393,0.50866122,3905.1,3904.7,3.32359]
[1734281553043,0.7867,3905.5,3904.8,2.20877566]
[1734281553193,0.51674596,3905.6,3905.3,4.76936566]
[1734281553392,0.51674596,3905.6,3905.3,2.20877566]
[1734281553642,0.51674596,3905.6,3905.1,3.0]
[1734281553791,0.51674596,3905.6,3905.0,3.0]
[1734281554002,0.64709056,3905.6,3905.0,3.0]
[1734281555246,0.51674596,3905.6,3905.0,3.0]
[1734281555756,0.51674596,3905.6,3905.1,0.87765083]
[1734281556472,0.29144596,3906.2,3905.4,0.8152]
[1734281557208,0.51992614,3905.6,3905.4,0.8152]
[1734281558231,0.51684505,3905.6,3905.4,0.8152]
[1734281558574,0.51684505,3905.6,3905.4,1.67365657]
[1734281558803,0.51684505,3905.6,3905.4,4.67365657]
[1734281558951,0.51684505,3905.6,3905.3,2.20877566]
[1734281564593,0.51684505,3905.6,3905.1,0.8152]
[1734281564792,0.51684505,3905.6,3905.2,0.87759026]
[1734281565342,0.51684505,3905.6,3905.2,3.87759026]
[1734281565547,0.51684505,3905.6,3905.2,3.0]
[1734281565990,0.51684505,3905.6,3905.3,0.87757721]
[1734281566158,0.51684505,3905.6,3905.2,3.0]
[1734281566498,0.51684505,3905.6,3905.3,0.87760284]
[1734281566664,0.51684505,3905.6,3905.1,0.8152]
[1734281569591,0.51684505,3905.6,3905.1,3.8152]
[1734281570221,0.51684505,3905.6,3905.3,3.0]
[1734281573704,0.51684505,3905.6,3905.3,3.02560366]
[1734281573919,0.51684505,3905.6,3905.3,3.0]
[1734281576005,0.51684505,3905.6,3905.4,1.01938013]
[1734281577702,0.85444505,3905.6,3905.4,1.01938013]
[1734281579921,0.51684505,3905.6,3905.4,1.01938013]
[1734281585421,0.3376,3906.1,3905.4,1.78376485]
[1734281585608,1.59208028,3906.8,3905.4,1.78376485]
[1734281585609,0.3376,3906.7,3905.7,1.01938013]
[1734281586460,0.50603871,3905.8,3905.7,1.01938013]
[1734281586803,0.3376,3906.7,3905.7,1.01938013]
[1734281587112,1.59208028,3907.1,3905.7,1.01938013]
[1734281587113,0.3376,3907.1,3906.4,1.01938013]
[1734281587307,0.5084967,3906.5,3906.4,1.01938013]
[1734281590154,0.8460967,3906.5,3906.4,1.01938013]
[1734281591020,0.8460967,3906.5,3906.1,1.01938013]
[1734281592043,0.5084967,3906.5,3906.4,1.01938013]
[1734281594264,0.5084967,3906.5,3906.1,1.77628013]
[1734281594472,0.5084967,3906.5,3906.1,1.01938013]
[1734281599171,0.5084967,3906.5,3906.4,1.01938013]
[1734281599326,0.5084967,3906.5,3906.4,1.77138013]
[1734281599527,0.3376,3907.1,3906.4,5.64868783]
[1734281599856,2.55902,3907.8,3906.8,1.01938013]
[1734281599857,0.3376,3907.6,3906.8,1.01938013]
[1734281601146,0.50255732,3906.9,3906.8,1.01938013]
[1734281603984,0.3376,3907.7,3907.0,2.5595]
[1734281605974,0.3376,3907.7,3907.1,1.01938013]
[1734281606446,0.52175247,3907.2,3907.1,1.01938013]
[1734281606656,0.52175247,3907.2,3907.1,3.57882013]
[1734281607477,0.3376,3908.1,3907.2,5.55936]
[1734281607648,0.3376,3908.1,3907.4,1.01938013]
[1734281608249,0.3376,3908.1,3907.4,1.67725414]
[1734281608777,0.3376,3908.1,3907.5,0.752]
[1734281610650,0.51278113,3907.6,3907.5,0.752]
[1734281611288,0.3376,3908.1,3907.5,0.752]
[1734281611493,0.3376,3908.1,3907.7,1.01938013]
[1734281613479,2.55853,3908.5,3907.7,1.01938013]
[1734281613480,0.5225055,3907.8,3907.7,1.01938013]
[1734281614182,0.5225055,3907.8,3907.7,1.56230554]
[1734281614386,4.06138685,3909.5,3907.7,1.56230554]
[1734281614387,1.06138685,3909.6,3907.8,0.752]
[1734281614600,0.3376,3909.0,3908.6,1.01938013]
[1734281614744,0.3376,3909.0,3908.3,1.01938013]
[1734281614937,0.3376,3909.0,3907.8,0.752]
[1734281615157,0.51707635,3908.7,3907.9,1.01938013]
[1734281616798,0.51707635,3908.7,3908.6,0.8054]
[1734281619805,0.51707635,3908.7,3908.1,3.0]
[1734281623664,0.51707635,3908.7,3908.3,2.20516061]
[1734281623892,0.51707635,3908.7,3908.3,5.20516061]
[1734281625091,0.51707635,3908.7,3908.5,3.0]
[1734281625294,0.51707635,3908.7,3908.6,1.15691306]
[1734281626816,0.3376,3910.0,3908.6,1.15691306]
[1734281627107,0.50659918,3909.3,3909.2,2.55806]
[1734281627308,0.3376,3910.0,3909.4,2.55793]
[1734281627990,0.51014664,3909.7,3909.3,0.8054]
[1734281628304,0.51014664,3909.7,3909.3,3.8054]
[1734281628517,0.51014664,3909.7,3909.4,0.636345]
[1734281630456,0.51014664,3909.7,3909.4,3.636345]
[1734281630995,0.3376,3910.3,3909.4,3.636345]
[1734281631703,0.50170389,3909.8,3909.4,3.636345]
[1734281634483,0.3376,3909.7,3908.6,0.93549506]
[1734281634861,2.89537,3909.7,3908.6,0.93549506]
[1734281635702,2.55781,3909.6,3908.6,3.8054]
[1734281635906,2.55781,3909.6,3908.6,0.8054]
[1734281636104,2.55781,3909.6,3908.6,1.39446168]
[1734281637292,2.55781,3909.6,3908.6,4.39446168]
[1734281637498,2.55788,3909.5,3908.6,4.39446168]
[1734281639883,0.3376,3909.7,3908.6,4.39446168]
[1734281640078,0.3376,3909.7,3908.7,0.91582023]
[1734281640799,2.89534,3909.7,3908.7,0.91582023]
[1734281642560,0.3376,3909.7,3908.9,2.20516061]
[1734281643528,0.3376,3910.0,3909.0,0.7597]
[1734281643725,2.55735,3910.3,3909.1,0.62206464]
[1734281644042,0.3376,3910.5,3909.4,0.7597]
[1734281644342,0.3376,3910.5,3909.4,3.7597]
[1734281644831,0.50425025,3909.8,3909.4,3.7597]
[1734281645997,0.50425025,3909.8,3909.7,2.20516061]
[1734281646206,0.51888251,3910.1,3909.8,6.35281]
[1734281647237,0.51888251,3910.1,3910.0,2.55754]
[1734281647497,0.51888251,3910.1,3910.0,5.55754]
[1734281647930,0.51888251,3910.1,3910.0,3.0]
[1734281648145,0.51888251,3910.1,3909.8,3.7952]
[1734281648349,0.51888251,3910.1,3909.9,0.83393409]
[1734281652651,0.51888251,3910.1,3909.8,3.0]
[1734281652818,0.51888251,3910.1,3909.4,3.7952]
[1734281653021,0.85648251,3910.1,3909.4,3.7952]
[1734281658636,0.85648251,3910.1,3909.3,2.20516061]
[1734281658834,2.5576,3910.0,3909.3,2.20516061]
[1734281660777,0.51044914,3909.5,3909.3,2.20516061]
[1734281660960,0.51044914,3909.5,3909.4,3.0]
[1734281664580,0.51044914,3909.5,3909.3,0.65589467]
[1734281664907,0.51044914,3909.5,3909.3,3.65589467]
[1734281665213,0.51044914,3909.5,3908.8,1.8193471]
[1734281665375,0.51044914,3909.5,3908.9,5.19053278]
[1734281665557,0.51044914,3909.5,3909.0,0.87621311]
[1734281668528,0.51044914,3909.5,3909.0,2.19133367]
[1734281668881,0.3376,3910.5,3909.2,5.12885141]
[1734281669114,3.20984824,3911.5,3910.2,3.0]
[1734281669115,0.3376,3910.8,3910.2,3.0]
[1734281669992,0.3376,3910.8,3910.4,1.00138937]
[1734281670691,2.5567,3911.3,3910.4,1.00138937]
[1734281670920,0.3376,3911.2,3910.4,1.00138937]
[1734281671424,0.3376,3911.2,3910.7,1.00138937]
[1734281671622,0.3376,3911.5,3910.7,1.00138937]
[1734281671799,0.3376,3911.5,3911.0,1.00138937]
[1734281671980,0.50032869,3911.1,3910.6,3.7556]
[1734281672319,0.50032869,3911.1,3910.7,0.87552128]
[1734281672896,0.50032869,3911.1,3910.6,3.7556]
[1734281673096,0.50032869,3911.1,3910.7,0.87543031]
[1734281673684,0.50032869,3911.1,3910.6,4.70600189]
[1734281679755,0.50032869,3911.1,3910.2,0.7947]
[1734281680042,0.3376,3911.0,3910.2,0.7947]
[1734281680599,0.3376,3911.0,3909.9,3.0]
[1734281680822,0.3376,3911.0,3910.0,2.18410762]
[1734281682146,0.3376,3911.0,3910.1,0.87340574]
[1734281682349,0.3376,3911.0,3910.1,1.04169146]
[1734281682653,0.3376,3911.0,3909.8,3.98583887]
[1734281682845,2.55696,3910.9,3909.9,0.87355432]
[1734281683543,0.49946432,3910.4,3909.9,0.87355432]
[1734281684200,0.49946432,3910.4,3909.9,3.87355432]